{"text_format":"2","workbook":"xlsx","n_sheets":5,"sheets":["Для проверки","комс 8","комсомольская 10","Солнечная,1","Молодежная,1"],"not_rendered":{"charts":0,"images":0,"macros":0,"external_links":0,"defined_names":1,"comments":0,"pivot_tables":0},"unopened":[],"bounds":{"document_bytes":16777216,"sheet_cells":100000,"run_cost":"one","rows_first":2000,"rows_last":500,"rows_between":2000,"halvings":0,"cell_chars":16384,"cell_head_chars":4096},"cells_cut":0,"cells_raw":0,"read":"whole","date_system":"1900"}

{"sheet":"Для проверки","index":0,"n_rows":22,"n_cols":8,"rows_kept":22,"cut":false,"hidden":false,"merged":[]}
[]
[null," ул.КОМСОМОЛЬСКАЯ дом 8"]
[null,{"$f":"VLOOKUP(B2,#REF!,2,0)","v":{"$error":"#REF!"}}]
[]
[null,"Общая информация","Выполняемые работы","Водоотведение","Отопление","Коммуналка","Услуга","Периодичность"]
[null,{"$f":"VLOOKUP(B2,#REF!,3,0)","v":{"$error":"#REF!"}},{"$f":"VLOOKUP(B2,#REF!,3,0)","v":{"$error":"#REF!"}},{"$f":"VLOOKUP(B2,#REF!,3,0)","v":{"$error":"#REF!"}},{"$f":"VLOOKUP(B2,#REF!,11,0)","v":{"$error":"#REF!"}},{"$f":"VLOOKUP(B2,#REF!,3,0)","v":{"$error":"#REF!"}},"Помещения","Ежемесячно"]
[null,{"$f":"VLOOKUP(B2,#REF!,4,0)","v":{"$error":"#REF!"}},{"$f":"VLOOKUP(B2,#REF!,4,0)","v":{"$error":"#REF!"}},{"$f":"VLOOKUP(B2,#REF!,4,0)","v":{"$error":"#REF!"}},{"$f":"VLOOKUP(B2,#REF!,12,0)","v":{"$error":"#REF!"}},{"$f":"VLOOKUP(B2,#REF!,4,0)","v":{"$error":"#REF!"}},"ТБО","Ежемесячно"]
[null,{"$f":"VLOOKUP(B2,#REF!,5,0)","v":{"$error":"#REF!"}},{"$f":"VLOOKUP(B2,#REF!,5,0)","v":{"$error":"#REF!"}},{"$f":"VLOOKUP(B2,#REF!,5,0)","v":{"$error":"#REF!"}},{"$f":"VLOOKUP(B2,#REF!,13,0)","v":{"$error":"#REF!"}},{"$f":"VLOOKUP(B2,#REF!,5,0)","v":{"$error":"#REF!"}},"газового оборудования  ","По графику"]
[null,{"$f":"VLOOKUP(B2,#REF!,6,0)","v":{"$error":"#REF!"}},{"$f":"VLOOKUP(B2,#REF!,6,0)","v":{"$error":"#REF!"}},{"$f":"VLOOKUP(B2,#REF!,6,0)","v":{"$error":"#REF!"}},{"$f":"VLOOKUP(B2,#REF!,14,0)","v":{"$error":"#REF!"}},{"$f":"VLOOKUP(B2,#REF!,6,0)","v":{"$error":"#REF!"}},"аварий на внутридомовых","По мере выявления"]
[null,{"$f":"VLOOKUP(B2,#REF!,7,0)","v":{"$error":"#REF!"}},{"$f":"VLOOKUP(B2,#REF!,7,0)","v":{"$error":"#REF!"}},{"$f":"VLOOKUP(B2,#REF!,7,0)","v":{"$error":"#REF!"}},{"$f":"VLOOKUP(B2,#REF!,15,0)","v":{"$error":"#REF!"}},{"$f":"VLOOKUP(B2,#REF!,7,0)","v":{"$error":"#REF!"}},"дератизации и дезинсекции","Ежемесячно"]
[null,{"$f":"VLOOKUP(B2,#REF!,8,0)","v":{"$error":"#REF!"}},{"$f":"VLOOKUP(B2,#REF!,8,0)","v":{"$error":"#REF!"}},{"$f":"VLOOKUP(B2,#REF!,8,0)","v":{"$error":"#REF!"}},{"$f":"VLOOKUP(B2,#REF!,16,0)","v":{"$error":"#REF!"}},{"$f":"VLOOKUP(B2,#REF!,8,0)","v":{"$error":"#REF!"}},"Управление","Ежемесячно"]
[null,{"$f":"VLOOKUP(B2,#REF!,9,0)","v":{"$error":"#REF!"}},{"$f":"VLOOKUP(B2,#REF!,9,0)","v":{"$error":"#REF!"}},{"$f":"VLOOKUP(B2,#REF!,9,0)","v":{"$error":"#REF!"}},{"$f":"VLOOKUP(B2,#REF!,17,0)","v":{"$error":"#REF!"}},"Претензии","земельного участка","Ежемесячно"]
[null,{"$f":"VLOOKUP(B2,#REF!,10,0)","v":{"$error":"#REF!"}},{"$f":"VLOOKUP(B2,#REF!,10,0)","v":{"$error":"#REF!"}},{"$f":"VLOOKUP(B2,#REF!,10,0)","v":{"$error":"#REF!"}},{"$f":"VLOOKUP(B2,#REF!,18,0)","v":{"$error":"#REF!"}},{"$f":"VLOOKUP(B2,#REF!,9,0)","v":{"$error":"#REF!"}},"Текущий ремонт","При проведении текущего ремонта"]
[null,{"$f":"VLOOKUP(B2,#REF!,11,0)","v":{"$error":"#REF!"}},"Претензии","ГВС","ХВС",{"$f":"VLOOKUP(B2,#REF!,10,0)","v":{"$error":"#REF!"}},"Электроэнергия"]
[null,{"$f":"VLOOKUP(B2,#REF!,12,0)","v":{"$error":"#REF!"}},{"$f":"VLOOKUP(B2,#REF!,3,0)","v":{"$error":"#REF!"}},{"$f":"VLOOKUP(B2,#REF!,19,0)","v":{"$error":"#REF!"}},{"$f":"VLOOKUP(B2,#REF!,27,0)","v":{"$error":"#REF!"}},{"$f":"VLOOKUP(B2,#REF!,11,0)","v":{"$error":"#REF!"}},{"$f":"IF((VLOOKUP(B2,#REF!,35,0))<=0,\" \",VLOOKUP(B2,#REF!,35,0))","v":{"$error":"#REF!"}}]
[null,{"$f":"VLOOKUP(B2,#REF!,13,0)","v":{"$error":"#REF!"}},{"$f":"VLOOKUP(B2,#REF!,4,0)","v":{"$error":"#REF!"}},{"$f":"VLOOKUP(B2,#REF!,20,0)","v":{"$error":"#REF!"}},{"$f":"VLOOKUP(B2,#REF!,28,0)","v":{"$error":"#REF!"}},{"$f":"VLOOKUP(B2,#REF!,12,0)","v":{"$error":"#REF!"}},{"$f":"IF((VLOOKUP(B2,#REF!,36,0))<=0,\" \",VLOOKUP(B2,#REF!,36,0))","v":{"$error":"#REF!"}}]
[null,{"$f":"VLOOKUP(B2,#REF!,14,0)","v":{"$error":"#REF!"}},{"$f":"VLOOKUP(B2,#REF!,5,0)","v":{"$error":"#REF!"}},{"$f":"VLOOKUP(B2,#REF!,21,0)","v":{"$error":"#REF!"}},{"$f":"VLOOKUP(B2,#REF!,29,0)","v":{"$error":"#REF!"}},"Претензионно-иск",{"$f":"IF((VLOOKUP(B2,#REF!,37,0))<=0,\" \",VLOOKUP(B2,#REF!,37,0))","v":{"$error":"#REF!"}}]
[null,{"$f":"VLOOKUP(B2,#REF!,15,0)","v":{"$error":"#REF!"}},{"$f":"VLOOKUP(B2,#REF!,6,0)","v":{"$error":"#REF!"}},{"$f":"VLOOKUP(B2,#REF!,22,0)","v":{"$error":"#REF!"}},{"$f":"VLOOKUP(B2,#REF!,30,0)","v":{"$error":"#REF!"}},{"$f":"VLOOKUP(B2,#REF!,3,0)","v":{"$error":"#REF!"}},{"$f":"IF((VLOOKUP(B2,#REF!,35,0))<=0,\" \",VLOOKUP(B2,#REF!,38,0))","v":{"$error":"#REF!"}}]
[null,{"$f":"VLOOKUP(B2,#REF!,16,0)","v":{"$error":"#REF!"}},null,{"$f":"VLOOKUP(B2,#REF!,23,0)","v":{"$error":"#REF!"}},{"$f":"VLOOKUP(B2,#REF!,31,0)","v":{"$error":"#REF!"}},{"$f":"VLOOKUP(B2,#REF!,4,0)","v":{"$error":"#REF!"}},{"$f":"IF((VLOOKUP(B2,#REF!,39,0))<=0,\" \",VLOOKUP(B2,#REF!,39,0))","v":{"$error":"#REF!"}}]
[null,{"$f":"VLOOKUP(B2,#REF!,17,0)","v":{"$error":"#REF!"}},null,{"$f":"VLOOKUP(B2,#REF!,24,0)","v":{"$error":"#REF!"}},{"$f":"VLOOKUP(B2,#REF!,32,0)","v":{"$error":"#REF!"}},{"$f":"VLOOKUP(B2,#REF!,5,0)","v":{"$error":"#REF!"}},{"$f":"IF((VLOOKUP(B2,#REF!,40,0))<=0,\" \",VLOOKUP(B2,#REF!,40,0))","v":{"$error":"#REF!"}}]
[null,{"$f":"VLOOKUP(B2,#REF!,18,0)","v":{"$error":"#REF!"}},null,{"$f":"VLOOKUP(B2,#REF!,25,0)","v":{"$error":"#REF!"}},{"$f":"VLOOKUP(B2,#REF!,33,0)","v":{"$error":"#REF!"}},null,{"$f":"IF((VLOOKUP(B2,#REF!,41,0))<=0,\" \",VLOOKUP(B2,#REF!,41,0))","v":{"$error":"#REF!"}}]
[null,{"$f":"VLOOKUP(B2,#REF!,19,0)","v":{"$error":"#REF!"}},null,{"$f":"VLOOKUP(B2,#REF!,26,0)","v":{"$error":"#REF!"}},{"$f":"VLOOKUP(B2,#REF!,34,0)","v":{"$error":"#REF!"}},null,{"$f":"IF((VLOOKUP(B2,#REF!,42,0))<=0,\" \",VLOOKUP(B2,#REF!,42,0))","v":{"$error":"#REF!"}}]

{"sheet":"комс 8","index":1,"n_rows":138,"n_cols":5,"rows_kept":138,"cut":false,"hidden":false,"merged":[[33,3,33,4],[67,0,67,4],[68,3,68,4],[72,3,72,4],[74,0,74,4],[37,3,37,4],[65,3,65,4],[39,0,39,4],[40,3,40,4],[44,3,44,4],[46,0,46,4],[47,3,47,4],[51,3,51,4],[60,0,60,4],[61,3,61,4],[53,3,53,4],[6,0,6,4],[11,0,11,4],[29,0,29,4],[30,3,30,4],[32,0,32,4],[0,0,2,2],[0,3,0,4],[1,3,1,4],[3,0,3,4],[4,0,4,4],[55,0,55,4],[56,3,56,4],[75,3,75,4],[109,3,109,4],[119,3,119,4],[79,3,79,4],[81,0,81,4],[82,3,82,4],[129,0,129,4],[134,0,134,4],[99,3,99,4],[86,0,86,4],[91,0,91,4],[98,0,98,4]]}
[{"$f":"'Для проверки'!B2","v":" ул.КОМСОМОЛЬСКАЯ дом 8"},null,null,"Утв. приказом Минстроя России"]
[null,null,null,"от 22 декабря 2014 г. № 882/пр"]
[]
["Отчет об исполнении  МУП \"ЖКХ Зарубинское\" договора управления,"]
["а также отчет о выполнении смет доходов и расходов за 2018 год"]
[]
["Параметры формы"]
["№ п/п","Наименование параметра","Ед. изм.","Наименование показателя","Информация"]
[1,"Дата заполнения/внесения изменений","—","Дата заполнения/внесения изменений","2019-03-19"]
[2,"Дата начала отчетного периода","—","Дата начала отчетного периода","2018-01-01"]
[3,"Дата конца отчетного периода","—","Дата конца отчетного периода","2018-12-31"]
["Общая информация о выполняемых работах (оказываемых услугах) по содержанию и текущему ремонту общего имущества в многоквартирном доме"]
[4,"Авансовые платежи потребителей (на начало периода)","руб.","Авансовые платежи потребителей (на начало периода)",0]
[5,"Переходящие остатки денежных средств (на начало периода)","руб.","Переходящие остатки денежных средств (на начало периода)",0]
[6,"Задолженность потребителей (на начало периода)","руб.","Задолженность потребителей (на начало периода)",0]
[7,"Начислено за услуги (работы) по содержанию и текущему ремонту, в том числе:","руб.","Начислено за услуги (работы) по содержанию и текущему ремонту",{"$f":"E17+E18+E19","v":184221}]
[8,"— за содержание дома","руб.","Начислено за содержание дома",139640]
[9,"— за текущий ремонт","руб.","Начислено за текущий ремонт",11053]
[10,"— за услуги управления","руб.","Начислено за услуги управления",33528]
[11,"Получено денежных средств, в том числе","руб.","Получено денежных средств",175720]
[12,"— денежных средств от собственников/нанимателей помещений","руб.","Получено денежных средств от собственников/нанимателей помещений",175720]
[13,"— целевых взносов от собственников/нанимателей помещений","руб.","Получено целевых взносов от собственников/нанимателей помещений",0]
[14,"— субсидий","руб.","Получено субсидий",0]
[15,"— денежных средств от использования общего имущества","руб.","Получено денежных средств от использования общего имущества",0]
[16,"— прочие поступления","руб.","Прочие поступления",0]
[17,"Всего денежных средств с учетом остатков","руб.","Всего денежных средств с учетом остатков",175720]
[18,"Авансовые платежи потребителей (на конец периода)","руб.","Авансовые платежи потребителей (на конец периода)",10060]
[19,"Переходящие остатки денежных средств (на конец периода)","руб.","Переходящие остатки денежных средств (на конец периода)",0]
[20,"Задолженность потребителей (на конец периода)","руб.","Задолженность потребителей (на конец периода)",8501]
["Выполненные работы (оказанные услуги) по содержанию общего имущества и текущему ремонту в отчетном периоде (заполняется по каждому виду работ (услуг))"]
[21,"Наименование работ (услуг)","—","Работы (услуги) по управлению многоквартирным домом  "]
[22,"Годовая фактическая стоимость работ (услуг)","руб.","Годовая фактическая стоимость работ (услуг)",40657]
["Детальный перечень выполненных работ (оказанных услуг) в рамках выбранной работы (услуги) (заполняется по каждой выполненной работе (оказанной услуге) в пункте 21 настоящего документа)."]
[23,"Наименование работы (услуги), выполняемой в рамках указанного раздела работ (услуг)","—","Работы (услуги) по управлению многоквартирным домом  "]
[24,"Периодичность выполнения работ (оказания услуг)","—","Периодичность выполнения работ (оказания услуг)","Ежемесячно"]
[25,"Единица измерения","—","Единица измерения"]
[26,"Стоимость на единицу измерения","руб.","Стоимость на единицу измерения"]
[21,"Наименование работ (услуг)","—","Работы по содержанию помещений, входящих в состав общего имущества в многоквартирном доме  "]
[22,"Годовая фактическая стоимость работ (услуг)","руб.","Годовая фактическая стоимость работ (услуг)",20634.240000000002]
["Детальный перечень выполненных работ (оказанных услуг) в рамках выбранной работы (услуги) (заполняется по каждой выполненной работе (оказанной услуге) в пункте 21 настоящего документа)."]
[23,"Наименование работы (услуги), выполняемой в рамках указанного раздела работ (услуг)","—","Работы по содержанию помещений, входящих в состав общего имущества в многоквартирном доме  "]
[24,"Периодичность выполнения работ (оказания услуг)","—","Периодичность выполнения работ (оказания услуг)","Ежемесячно"]
[25,"Единица измерения","—","Единица измерения"]
[26,"Стоимость на единицу измерения","руб.","Стоимость на единицу измерения"]
[21,"Наименование работ (услуг)","—","Работы по содержанию и ремонту систем внутридомового газового оборудования  "]
[22,"Годовая фактическая стоимость работ (услуг)","руб.","Годовая фактическая стоимость работ (услуг)",6734.47]
["Детальный перечень выполненных работ (оказанных услуг) в рамках выбранной работы (услуги) (заполняется по каждой выполненной работе (оказанной услуге) в пункте 21 настоящего документа)."]
[23,"Наименование работы (услуги), выполняемой в рамках указанного раздела работ (услуг)","—","Работы по содержанию и ремонту систем внутридомового газового оборудования  "]
[24,"Периодичность выполнения работ (оказания услуг)","—","Периодичность выполнения работ (оказания услуг)","Раз в год"]
[25,"Единица измерения","—","Единица измерения"]
[26,"Стоимость на единицу измерения","руб.","Стоимость на единицу измерения"]
[21,"Наименование работ (услуг)","—","Работы по содержанию земельного участка с элементами озеленения и благоустройства, иными объектами, предназначенными для обслуживания и эксплуатации многоквартирного дома"]
[22,"Годовая фактическая стоимость работ (услуг)","руб.","Годовая фактическая стоимость работ (услуг)",17596.97]
[21,"Наименование работ (услуг)","—","Работы по содержанию и ремонту систем дымоудаления и вентиляции  "]
[22,"Годовая фактическая стоимость работ (услуг)","руб.","Годовая фактическая стоимость работ (услуг)",1188]
["Детальный перечень выполненных работ (оказанных услуг) в рамках выбранной работы (услуги) (заполняется по каждой выполненной работе (оказанной услуге) в пункте 21 настоящего документа)."]
[23,"Наименование работы (услуги), выполняемой в рамках указанного раздела работ (услуг)","—","Работы по содержанию и ремонту систем внутридомового газового оборудования  "]
[24,"Периодичность выполнения работ (оказания услуг)","—","Периодичность выполнения работ (оказания услуг)","Раз в год"]
[25,"Единица измерения","—","Единица измерения"]
[26,"Стоимость на единицу измерения","руб.","Стоимость на единицу измерения"]
["Детальный перечень выполненных работ (оказанных услуг) в рамках выбранной работы (услуги) (заполняется по каждой выполненной работе (оказанной услуге) в пункте 21 настоящего документа)."]
[23,"Наименование работы (услуги), выполняемой в рамках указанного раздела работ (услуг)","—","Работы по содержанию земельного участка с элементами озеленения и благоустройства, иными объектами, предназначенными для обслуживания и эксплуатации многоквартирного дома"]
[24,"Периодичность выполнения работ (оказания услуг)","—","Периодичность выполнения работ (оказания услуг)","Ежемесячно"]
[25,"Единица измерения","—","Единица измерения"]
[26,"Стоимость на единицу измерения","руб.","Стоимость на единицу измерения"]
[21,"Наименование работ (услуг)","—","Проведение дератизации и дезинсекции помещений, входящих в состав общего имущества в многоквартирном доме  "]
[22,"Годовая фактическая стоимость работ (услуг)","руб.","Годовая фактическая стоимость работ (услуг)",3011.55]
["Детальный перечень выполненных работ (оказанных услуг) в рамках выбранной работы (услуги) (заполняется по каждой выполненной работе (оказанной услуге) в пункте 21 настоящего документа)."]
[23,"Наименование работы (услуги), выполняемой в рамках указанного раздела работ (услуг)","—","Проведение дератизации и дезинсекции помещений, входящих в состав общего имущества в многоквартирном доме  "]
[24,"Периодичность выполнения работ (оказания услуг)","—","Периодичность выполнения работ (оказания услуг)","Ежеквартально"]
[25,"Единица измерения","—","Единица измерения"]
[26,"Стоимость на единицу измерения","руб.","Стоимость на единицу измерения"]
[21,"Наименование работ (услуг)","—","Работы по обеспечению вывоза бытовых отходов"]
[22,"Годовая фактическая стоимость работ (услуг)","руб.","Годовая фактическая стоимость работ (услуг)",65943.77]
["Детальный перечень выполненных работ (оказанных услуг) в рамках выбранной работы (услуги) (заполняется по каждой выполненной работе (оказанной услуге) в пункте 21 настоящего документа)."]
[23,"Наименование работы (услуги), выполняемой в рамках указанного раздела работ (услуг)","—","Работы по обеспечению вывоза бытовых отходов"]
[24,"Периодичность выполнения работ (оказания услуг)","—","Периодичность выполнения работ (оказания услуг)","Ежемесячно"]
[25,"Единица измерения","—","Единица измерения"]
[26,"Стоимость на единицу измерения","руб.","Стоимость на единицу измерения"]
[21,"Наименование работ (услуг)","—","Прочие работы (услуга)"]
[22,"Годовая фактическая стоимость работ (услуг)","руб.","Годовая фактическая стоимость работ (услуг)",10907.52]
["Детальный перечень выполненных работ (оказанных услуг) в рамках выбранной работы (услуги) (заполняется по каждой выполненной работе (оказанной услуге) в пункте 21 настоящего документа)."]
[23,"Наименование работы (услуги), выполняемой в рамках указанного раздела работ (услуг)","—","Работы по содержанию и ремонту систем внутридомового газового оборудования  "]
[24,"Периодичность выполнения работ (оказания услуг)","—","Периодичность выполнения работ (оказания услуг)","Раз в год"]
[25,"Единица измерения","—","Единица измерения"]
[26,"Стоимость на единицу измерения","руб.","Стоимость на единицу измерения"]
["Информация о наличии претензий по качеству выполненных работ (оказанных услуг)"]
[27,"Количество поступивших претензий","ед.","Количество поступивших претензий",0]
[28,"Количество удовлетворенных претензий","ед.","Количество удовлетворенных претензий",0]
[29,"Количество претензий, в удовлетворении которых отказано","ед.","Количество претензий, в удовлетворении которых отказано",0]
[30,"Сумма произведенного перерасчета","руб.","Сумма произведенного перерасчета",0]
["Общая информация по предоставленным коммунальным услугам"]
[31,"Авансовые платежи потребителей (на начало периода)","руб.","Авансовые платежи потребителей (на начало периода)",0]
[32,"Переходящие остатки денежных средств (на начало периода)","руб.","Переходящие остатки денежных средств (на начало периода)",0]
[33,"Задолженность потребителей (на начало периода)","руб.","Задолженность потребителей (на начало периода)",0]
[34,"Авансовые платежи потреби-телей (на конец периода)","руб.","Авансовые платежи потребителей (на конец периода)",67323]
[35,"Переходящие остатки денежных средств (на конец периода)","руб.","Переходящие остатки денежных средств (на конец периода)",0]
[36,"Задолженность потребителей (на конец периода)","руб.","Задолженность потребителей (на конец периода)",54115]
["Информация о предоставленных коммунальных услугах (заполняется по каждой коммунальной услуге)*"]
[37,"Вид коммунальной услуги","—","Отопление"]
[38,"Единица измерения","—","Единица измерения","Гкал"]
[39,"Общий объем потребления","нат. показ","Общий объем потребления",0]
[40,"Начислено потребителям","руб.","Начислено потребителям",1029241]
[41,"Оплачено потребителями","руб.","Оплачено потребителями",981746]
[42,"Задолженность потребителей","руб.","Задолженность потребителей",47495]
[43,"Начислено поставщиком (поставщиками) коммунального ресурса","руб.","Начислено поставщиком (поставщиками) коммунального ресурса",0]
[44,"Оплачено поставщику (поставщикам) коммунального ресурса","руб.","Оплачено поставщику (поставщикам) коммунального ресурса",0]
[45,"Задолженность перед поставщиком (поставщиками) коммунального ресурса","руб.","Задолженность перед поставщиком (поставщиками) коммунального ресурса",0]
[46,"Размер пени и штрафов, уплаченных поставщику (поставщикам) коммунального ресурса","руб.","Размер пени и штрафов, уплаченных поставщику (поставщикам) коммунального ресурса",0]
[37,"Вид коммунальной услуги","—","Холодное водоснабжение"]
[38,"Единица измерения","—","Единица измерения","куб.м"]
[39,"Общий объем потребления","нат. показ","Общий объем потребления",1964]
[40,"Начислено потребителям","руб.","Начислено потребителям",62806]
[41,"Оплачено потребителями","руб.","Оплачено потребителями",59908]
[42,"Задолженность потребителей","руб.","Задолженность потребителей",2898]
[43,"Начислено поставщиком (поставщиками) коммунального ресурса","руб.","Начислено поставщиком (поставщиками) коммунального ресурса",0]
[44,"Оплачено поставщику (поставщикам) коммунального ресурса","руб.","Оплачено поставщику (поставщикам) коммунального ресурса",0]
[45,"Задолженность перед поставщиком (поставщиками) коммунального ресурса","руб.","Задолженность перед поставщиком (поставщиками) коммунального ресурса",0]
[46,"Размер пени и штрафов, уплаченных поставщику (поставщикам) коммунального ресурса","руб.","Размер пени и штрафов, уплаченных поставщику (поставщикам) коммунального ресурса",0]
[37,"Вид коммунальной услуги","—","Водоотведение"]
[38,"Единица измерения","—","Единица измерения","куб.м"]
[39,"Общий объем потребления","нат. показ","Общий объем потребления",1964]
[40,"Начислено потребителям","руб.","Начислено потребителям",80660]
[41,"Оплачено потребителями","руб.","Оплачено потребителями",76938]
[42,"Задолженность потребителей","руб.","Задолженность потребителей",3722]
[43,"Начислено поставщиком (поставщиками) коммунального ресурса","руб.","Начислено поставщиком (поставщиками) коммунального ресурса",0]
[44,"Оплачено поставщику (поставщикам) коммунального ресурса","руб.","Оплачено поставщику (поставщикам) коммунального ресурса",0]
[45,"Задолженность перед поставщиком (поставщиками) коммунального ресурса","руб.","Задолженность перед поставщиком (поставщиками) коммунального ресурса",0]
[46,"Размер пени и штрафов, уплаченных поставщику (поставщикам) коммунального ресурса","руб.","Размер пени и штрафов, уплаченных поставщику (поставщикам) коммунального ресурса",0]
["Информация о наличии претензий по качеству предоставленных коммунальных услуг"]
[47,"Количество поступивших претензий","ед.","Количество поступивших претензий",0]
[48,"Количество удовлетворенных претензий","ед.","Количество удовлетворенных претензий",0]
[49,"Количество претензий, в удовлетворении которых отказано","ед.","Количество претензий, в удовлетворении которых отказано",0]
[50,"Сумма произведенного перерасчета","руб.","Сумма произведенного перерасчета",0]
["Информация о ведении претензионно-исковой работы в отношении потребителей-должников"]
[51,"Направлено претензий потребителям-должникам","ед.","Направлено претензий потребителям-должникам",2]
[52,"Направлено исковых заявлений","ед.","Направлено исковых заявлений",1]
[53,"Получено денежных средств по результатам претензионно-исковой работы","руб.","Получено денежных средств по результатам претензионно-исковой работы",25150.05]

{"sheet":"комсомольская 10","index":2,"n_rows":131,"n_cols":5,"rows_kept":131,"cut":false,"hidden":false,"merged":[[102,3,102,4],[112,3,112,4],[122,0,122,4],[127,0,127,4],[51,3,51,4],[53,0,53,4],[54,3,54,4],[74,0,74,4],[75,3,75,4],[79,0,79,4],[84,0,84,4],[91,0,91,4],[92,3,92,4],[60,0,60,4],[61,3,61,4],[65,3,65,4],[67,0,67,4],[68,3,68,4],[72,3,72,4],[39,0,39,4],[40,3,40,4],[44,3,44,4],[46,0,46,4],[47,3,47,4],[58,3,58,4],[37,3,37,4],[0,0,2,2],[0,3,0,4],[1,3,1,4],[3,0,3,4],[4,0,4,4],[6,0,6,4],[11,0,11,4],[29,0,29,4],[30,3,30,4],[32,0,32,4],[33,3,33,4]]}
["Комсомольская,10",null,null,"Утв. приказом Минстроя России"]
[null,null,null,"от 22 декабря 2014 г. № 882/пр"]
[]
["Отчет об исполнении  МУП \"ЖКХ Зарубинское\" договора управления,"]
["а также отчет о выполнении смет доходов и расходов за 2018 год"]
[]
["Параметры формы"]
["№ п/п","Наименование параметра","Ед. изм.","Наименование показателя","Информация"]
[1,"Дата заполнения/внесения изменений","—","Дата заполнения/внесения изменений","2018-03-19"]
[2,"Дата начала отчетного периода","—","Дата начала отчетного периода","2018-01-01"]
[3,"Дата конца отчетного периода","—","Дата конца отчетного периода","2018-12-31"]
["Общая информация о выполняемых работах (оказываемых услугах) по содержанию и текущему ремонту общего имущества в многоквартирном доме"]
[4,"Авансовые платежи потребителей (на начало периода)","руб.","Авансовые платежи потребителей (на начало периода)",0]
[5,"Переходящие остатки денежных средств (на начало периода)","руб.","Переходящие остатки денежных средств (на начало периода)",0]
[6,"Задолженность потребителей (на начало периода)","руб.","Задолженность потребителей (на начало периода)",237147]
[7,"Начислено за услуги (работы) по содержанию и текущему ремонту, в том числе:","руб.","Начислено за услуги (работы) по содержанию и текущему ремонту",{"$f":"E17+E18+E19","v":184193}]
[8,"— за содержание дома","руб.","Начислено за содержание дома",139618]
[9,"— за текущий ремонт","руб.","Начислено за текущий ремонт",11052]
[10,"— за услуги управления","руб.","Начислено за услуги управления",33523]
[11,"Получено денежных средств, в том числе","руб.","Получено денежных средств",166042]
[12,"— денежных средств от собственников/нанимателей помещений","руб.","Получено денежных средств от собственников/нанимателей помещений",166042]
[13,"— целевых взносов от собственников/нанимателей помещений","руб.","Получено целевых взносов от собственников/нанимателей помещений",0]
[14,"— субсидий","руб.","Получено субсидий",0]
[15,"— денежных средств от использования общего имущества","руб.","Получено денежных средств от использования общего имущества",0]
[16,"— прочие поступления","руб.","Прочие поступления",0]
[17,"Всего денежных средств с учетом остатков","руб.","Всего денежных средств с учетом остатков",{"$f":"E15+E16","v":421340}]
[18,"Авансовые платежи потребителей (на конец периода)","руб.","Авансовые платежи потребителей (на конец периода)",0]
[19,"Переходящие остатки денежных средств (на конец периода)","руб.","Переходящие остатки денежных средств (на конец периода)",0]
[20,"Задолженность потребителей (на конец периода)","руб.","Задолженность потребителей (на конец периода)",18151]
["Выполненные работы (оказанные услуги) по содержанию общего имущества и текущему ремонту в отчетном периоде (заполняется по каждому виду работ (услуг))"]
[21,"Наименование работ (услуг)","—","Работы (услуги) по управлению многоквартирным домом  "]
[22,"Годовая фактическая стоимость работ (услуг)","руб.","Годовая фактическая стоимость работ (услуг)",42702]
["Детальный перечень выполненных работ (оказанных услуг) в рамках выбранной работы (услуги) (заполняется по каждой выполненной работе (оказанной услуге) в пункте 21 настоящего документа)."]
[23,"Наименование работы (услуги), выполняемой в рамках указанного раздела работ (услуг)","—","Работы (услуги) по управлению многоквартирным домом  "]
[24,"Периодичность выполнения работ (оказания услуг)","—","Периодичность выполнения работ (оказания услуг)","Ежемесячно"]
[25,"Единица измерения","—","Единица измерения"]
[26,"Стоимость на единицу измерения","руб.","Стоимость на единицу измерения"]
[21,"Наименование работ (услуг)","—","Работы по содержанию помещений, входящих в состав общего имущества в многоквартирном доме  "]
[22,"Годовая фактическая стоимость работ (услуг)","руб.","Годовая фактическая стоимость работ (услуг)",29500]
["Детальный перечень выполненных работ (оказанных услуг) в рамках выбранной работы (услуги) (заполняется по каждой выполненной работе (оказанной услуге) в пункте 21 настоящего документа)."]
[23,"Наименование работы (услуги), выполняемой в рамках указанного раздела работ (услуг)","—","Работы по содержанию помещений, входящих в состав общего имущества в многоквартирном доме  "]
[24,"Периодичность выполнения работ (оказания услуг)","—","Периодичность выполнения работ (оказания услуг)","Ежемесячно"]
[25,"Единица измерения","—","Единица измерения"]
[26,"Стоимость на единицу измерения","руб.","Стоимость на единицу измерения"]
[21,"Наименование работ (услуг)","—","Работы по содержанию и ремонту систем внутридомового газового оборудования  "]
[22,"Годовая фактическая стоимость работ (услуг)","руб.","Годовая фактическая стоимость работ (услуг)",6740]
["Детальный перечень выполненных работ (оказанных услуг) в рамках выбранной работы (услуги) (заполняется по каждой выполненной работе (оказанной услуге) в пункте 21 настоящего документа)."]
[23,"Наименование работы (услуги), выполняемой в рамках указанного раздела работ (услуг)","—","Работы по содержанию и ремонту систем внутридомового газового оборудования  "]
[24,"Периодичность выполнения работ (оказания услуг)","—","Периодичность выполнения работ (оказания услуг)","Раз в год"]
[25,"Единица измерения","—","Единица измерения"]
[26,"Стоимость на единицу измерения","руб.","Стоимость на единицу измерения"]
[21,"Наименование работ (услуг)","—","Работы по содержанию и ремонту систем дымоудаления и вентиляции  "]
[22,"Годовая фактическая стоимость работ (услуг)","руб.","Годовая фактическая стоимость работ (услуг)",1189]
["Детальный перечень выполненных работ (оказанных услуг) в рамках выбранной работы (услуги) (заполняется по каждой выполненной работе (оказанной услуге) в пункте 21 настоящего документа)."]
[23,"Наименование работы (услуги), выполняемой в рамках указанного раздела работ (услуг)","—","Работы по содержанию и ремонту систем внутридомового газового оборудования  "]
[24,"Периодичность выполнения работ (оказания услуг)","—","Периодичность выполнения работ (оказания услуг)","Раз в год"]
[25,"Единица измерения","—","Единица измерения"]
[26,"Стоимость на единицу измерения","руб.","Стоимость на единицу измерения"]
[21,"Наименование работ (услуг)","—","Работы по содержанию земельного участка с элементами озеленения и благоустройства, иными объектами, предназначенными для обслуживания и эксплуатации многоквартирного дома"]
[22,"Годовая фактическая стоимость работ (услуг)","руб.","Годовая фактическая стоимость работ (услуг)",16070.55]
["Детальный перечень выполненных работ (оказанных услуг) в рамках выбранной работы (услуги) (заполняется по каждой выполненной работе (оказанной услуге) в пункте 21 настоящего документа)."]
[23,"Наименование работы (услуги), выполняемой в рамках указанного раздела работ (услуг)","—","Работы по содержанию земельного участка с элементами озеленения и благоустройства, иными объектами, предназначенными для обслуживания и эксплуатации многоквартирного дома"]
[24,"Периодичность выполнения работ (оказания услуг)","—","Периодичность выполнения работ (оказания услуг)","Ежемесячно"]
[25,"Единица измерения","—","Единица измерения"]
[26,"Стоимость на единицу измерения","руб.","Стоимость на единицу измерения"]
[21,"Наименование работ (услуг)","—","Проведение дератизации и дезинсекции помещений, входящих в состав общего имущества в многоквартирном доме  "]
[22,"Годовая фактическая стоимость работ (услуг)","руб.","Годовая фактическая стоимость работ (услуг)",3014]
["Детальный перечень выполненных работ (оказанных услуг) в рамках выбранной работы (услуги) (заполняется по каждой выполненной работе (оказанной услуге) в пункте 21 настоящего документа)."]
[23,"Наименование работы (услуги), выполняемой в рамках указанного раздела работ (услуг)","—","Проведение дератизации и дезинсекции помещений, входящих в состав общего имущества в многоквартирном доме  "]
[24,"Периодичность выполнения работ (оказания услуг)","—","Периодичность выполнения работ (оказания услуг)","Ежеквартально"]
[25,"Единица измерения","—","Единица измерения"]
[26,"Стоимость на единицу измерения","руб.","Стоимость на единицу измерения"]
[21,"Наименование работ (услуг)","—","Работы по обеспечению вывоза бытовых отходов"]
[22,"Годовая фактическая стоимость работ (услуг)","руб.","Годовая фактическая стоимость работ (услуг)",65997]
["Детальный перечень выполненных работ (оказанных услуг) в рамках выбранной работы (услуги) (заполняется по каждой выполненной работе (оказанной услуге) в пункте 21 настоящего документа)."]
[23,"Наименование работы (услуги), выполняемой в рамках указанного раздела работ (услуг)","—","Работы по обеспечению вывоза бытовых отходов   ( Прочие услуги)"]
[24,"Периодичность выполнения работ (оказания услуг)","—","Годовая стоимость услуг",0]
[25,"Единица измерения","—","Единица измерения"]
[26,"Стоимость на единицу измерения","руб.","Стоимость на единицу измерения"]
[]
[27,"Количество поступивших претензий","ед.","Количество поступивших претензий",0]
[28,"Количество удовлетворенных претензий","ед.","Количество удовлетворенных претензий",0]
[29,"Количество претензий, в удовлетворении которых отказано","ед.","Количество претензий, в удовлетворении которых отказано",0]
[30,"Сумма произведенного перерасчета","руб.","Сумма произведенного перерасчета",0]
["Общая информация по предоставленным коммунальным услугам"]
[31,"Авансовые платежи потребителей (на начало периода)","руб.","Авансовые платежи потребителей (на начало периода)",0]
[32,"Переходящие остатки денежных средств (на начало периода)","руб.","Переходящие остатки денежных средств (на начало периода)",0]
[33,"Задолженность потребителей (на начало периода)","руб.","Задолженность потребителей (на начало периода)",1388748]
[34,"Авансовые платежи потреби-телей (на конец периода)","руб.","Авансовые платежи потребителей (на конец периода)",0]
[35,"Переходящие остатки денежных средств (на конец периода)","руб.","Переходящие остатки денежных средств (на конец периода)",0]
[36,"Задолженность потребителей (на конец периода)","руб.","Задолженность потребителей (на конец периода)",1406202]
["Информация о предоставленных коммунальных услугах (заполняется по каждой коммунальной услуге)*"]
[37,"Вид коммунальной услуги","—","Отопление"]
[38,"Единица измерения","—","Единица измерения","Гкал"]
[39,"Общий объем потребления","нат. показ","Общий объем потребления",0]
[40,"Начислено потребителям","руб.","Начислено потребителям",1029091]
[41,"Оплачено потребителями","руб.","Оплачено потребителями",927677]
[42,"Задолженность потребителей","руб.","Задолженность потребителей",{"$f":"E96-E97","v":101414}]
[43,"Начислено поставщиком (поставщиками) коммунального ресурса","руб.","Начислено поставщиком (поставщиками) коммунального ресурса",0]
[44,"Оплачено поставщику (поставщикам) коммунального ресурса","руб.","Оплачено поставщику (поставщикам) коммунального ресурса",0]
[45,"Задолженность перед поставщиком (поставщиками) коммунального ресурса","руб.","Задолженность перед поставщиком (поставщиками) коммунального ресурса",0]
[46,"Размер пени и штрафов, уплаченных поставщику (поставщикам) коммунального ресурса","руб.","Размер пени и штрафов, уплаченных поставщику (поставщикам) коммунального ресурса",0]
[37,"Вид коммунальной услуги","—","Холодное водоснабжение"]
[38,"Единица измерения","—","Единица измерения","куб.м"]
[39,"Общий объем потребления","нат. показ","Общий объем потребления",2477]
[40,"Начислено потребителям","руб.","Начислено потребителям",97760]
[41,"Оплачено потребителями","руб.","Оплачено потребителями",88126]
[42,"Задолженность потребителей","руб.","Задолженность потребителей",9634]
[43,"Начислено поставщиком (поставщиками) коммунального ресурса","руб.","Начислено поставщиком (поставщиками) коммунального ресурса",0]
[44,"Оплачено поставщику (поставщикам) коммунального ресурса","руб.","Оплачено поставщику (поставщикам) коммунального ресурса",0]
[45,"Задолженность перед поставщиком (поставщиками) коммунального ресурса","руб.","Задолженность перед поставщиком (поставщиками) коммунального ресурса",0]
[46,"Размер пени и штрафов, уплаченных поставщику (поставщикам) коммунального ресурса","руб.","Размер пени и штрафов, уплаченных поставщику (поставщикам) коммунального ресурса",0]
[37,"Вид коммунальной услуги","—","Водоотведение"]
[38,"Единица измерения","—","Единица измерения","куб.м"]
[39,"Общий объем потребления","нат. показ","Общий объем потребления",2477]
[40,"Начислено потребителям","руб.","Начислено потребителям",101707]
[41,"Оплачено потребителями","руб.","Оплачено потребителями",91684]
[42,"Задолженность потребителей","руб.","Задолженность потребителей",10023]
[43,"Начислено поставщиком (поставщиками) коммунального ресурса","руб.","Начислено поставщиком (поставщиками) коммунального ресурса",0]
[44,"Оплачено поставщику (поставщикам) коммунального ресурса","руб.","Оплачено поставщику (поставщикам) коммунального ресурса",0]
[45,"Задолженность перед поставщиком (поставщиками) коммунального ресурса","руб.","Задолженность перед поставщиком (поставщиками) коммунального ресурса",0]
[46,"Размер пени и штрафов, уплаченных поставщику (поставщикам) коммунального ресурса","руб.","Размер пени и штрафов, уплаченных поставщику (поставщикам) коммунального ресурса",0]
["Информация о наличии претензий по качеству предоставленных коммунальных услуг"]
[47,"Количество поступивших претензий","ед.","Количество поступивших претензий",0]
[48,"Количество удовлетворенных претензий","ед.","Количество удовлетворенных претензий",0]
[49,"Количество претензий, в удовлетворении которых отказано","ед.","Количество претензий, в удовлетворении которых отказано",0]
[50,"Сумма произведенного перерасчета","руб.","Сумма произведенного перерасчета",0]
["Информация о ведении претензионно-исковой работы в отношении потребителей-должников"]
[51,"Направлено претензий потребителям-должникам","ед.","Направлено претензий потребителям-должникам",4]
[52,"Направлено исковых заявлений","ед.","Направлено исковых заявлений",1]
[53,"Получено денежных средств по результатам претензионно-исковой работы","руб.","Получено денежных средств по результатам претензионно-исковой работы",0]

{"sheet":"Солнечная,1","index":3,"n_rows":131,"n_cols":5,"rows_kept":131,"cut":false,"hidden":false,"merged":[[51,3,51,4],[53,0,53,4],[54,3,54,4],[102,3,102,4],[112,3,112,4],[60,0,60,4],[61,3,61,4],[65,3,65,4],[67,0,67,4],[68,3,68,4],[72,3,72,4],[58,3,58,4],[122,0,122,4],[127,0,127,4],[74,0,74,4],[75,3,75,4],[79,0,79,4],[84,0,84,4],[91,0,91,4],[92,3,92,4],[39,0,39,4],[40,3,40,4],[44,3,44,4],[46,0,46,4],[47,3,47,4],[37,3,37,4],[0,0,2,2],[0,3,0,4],[1,3,1,4],[3,0,3,4],[4,0,4,4],[6,0,6,4],[11,0,11,4],[29,0,29,4],[30,3,30,4],[32,0,32,4],[33,3,33,4]]}
["Солнечная,1",null,null,"Утв. приказом Минстроя России"]
[null,null,null,"от 22 декабря 2014 г. № 882/пр"]
[]
["Отчет об исполнении  МУП \"ЖКХ Зарубинское\" договора управления,"]
["а также отчет о выполнении смет доходов и расходов за 2018 год"]
[]
["Параметры формы"]
["№ п/п","Наименование параметра","Ед. изм.","Наименование показателя","Информация"]
[1,"Дата заполнения/внесения изменений","—","Дата заполнения/внесения изменений","2019-03-19"]
[2,"Дата начала отчетного периода","—","Дата начала отчетного периода","2018-01-01"]
[3,"Дата конца отчетного периода","—","Дата конца отчетного периода","2018-12-31"]
["Общая информация о выполняемых работах (оказываемых услугах) по содержанию и текущему ремонту общего имущества в многоквартирном доме"]
[4,"Авансовые платежи потребителей (на начало периода)","руб.","Авансовые платежи потребителей (на начало периода)",0]
[5,"Переходящие остатки денежных средств (на начало периода)","руб.","Переходящие остатки денежных средств (на начало периода)",0]
[6,"Задолженность потребителей (на начало периода)","руб.","Задолженность потребителей (на начало периода)",72443]
[7,"Начислено за услуги (работы) по содержанию и текущему ремонту, в том числе:","руб.","Начислено за услуги (работы) по содержанию и текущему ремонту",{"$f":"E17+E18+E19","v":183024}]
[8,"— за содержание дома","руб.","Начислено за содержание дома",138733]
[9,"— за текущий ремонт","руб.","Начислено за текущий ремонт",10981]
[10,"— за услуги управления","руб.","Начислено за услуги управления",33310]
[11,"Получено денежных средств, в том числе","руб.","Получено денежных средств",186908]
[12,"— денежных средств от собственников/нанимателей помещений","руб.","Получено денежных средств от собственников/нанимателей помещений",186908]
[13,"— целевых взносов от собственников/нанимателей помещений","руб.","Получено целевых взносов от собственников/нанимателей помещений",0]
[14,"— субсидий","руб.","Получено субсидий",0]
[15,"— денежных средств от использования общего имущества","руб.","Получено денежных средств от использования общего имущества",0]
[16,"— прочие поступления","руб.","Прочие поступления",0]
[17,"Всего денежных средств с учетом остатков","руб.","Всего денежных средств с учетом остатков",{"$f":"E15+E16","v":255467}]
[18,"Авансовые платежи потребителей (на конец периода)","руб.","Авансовые платежи потребителей (на конец периода)",0]
[19,"Переходящие остатки денежных средств (на конец периода)","руб.","Переходящие остатки денежных средств (на конец периода)",0]
[20,"Задолженность потребителей (на конец периода)","руб.","Задолженность потребителей (на конец периода)",68559]
[","]
[21,"Наименование работ (услуг)","—","Работы (услуги) по управлению многоквартирным домом  "]
[22,"Годовая фактическая стоимость работ (услуг)","руб.","Годовая фактическая стоимость работ (услуг)",40367]
["Детальный перечень выполненных работ (оказанных услуг) в рамках выбранной работы (услуги) (заполняется по каждой выполненной работе (оказанной услуге) в пункте 21 настоящего документа)."]
[23,"Наименование работы (услуги), выполняемой в рамках указанного раздела работ (услуг)","—","Работы (услуги) по управлению многоквартирным домом  "]
[24,"Периодичность выполнения работ (оказания услуг)","—","Периодичность выполнения работ (оказания услуг)","Ежемесячно"]
[25,"Единица измерения","—","Единица измерения"]
[26,"Стоимость на единицу измерения","руб.","Стоимость на единицу измерения"]
[21,"Наименование работ (услуг)","—","Работы по содержанию помещений, входящих в состав общего имущества в многоквартирном доме  "]
[22,"Годовая фактическая стоимость работ (услуг)","руб.","Годовая фактическая стоимость работ (услуг)",27706]
["Детальный перечень выполненных работ (оказанных услуг) в рамках выбранной работы (услуги) (заполняется по каждой выполненной работе (оказанной услуге) в пункте 21 настоящего документа)."]
[23,"Наименование работы (услуги), выполняемой в рамках указанного раздела работ (услуг)","—","Работы по содержанию помещений, входящих в состав общего имущества в многоквартирном доме  "]
[24,"Периодичность выполнения работ (оказания услуг)","—","Периодичность выполнения работ (оказания услуг)","Ежемесячно"]
[25,"Единица измерения","—","Единица измерения"]
[26,"Стоимость на единицу измерения","руб.","Стоимость на единицу измерения"]
[21,"Наименование работ (услуг)","—","Работы по содержанию и ремонту систем внутридомового газового оборудования  "]
[22,"Годовая фактическая стоимость работ (услуг)","руб.","Годовая фактическая стоимость работ (услуг)",6686]
["Детальный перечень выполненных работ (оказанных услуг) в рамках выбранной работы (услуги) (заполняется по каждой выполненной работе (оказанной услуге) в пункте 21 настоящего документа)."]
[23,"Наименование работы (услуги), выполняемой в рамках указанного раздела работ (услуг)","—","Работы по содержанию и ремонту систем внутридомового газового оборудования  "]
[24,"Периодичность выполнения работ (оказания услуг)","—","Периодичность выполнения работ (оказания услуг)","Раз в год"]
[25,"Единица измерения","—","Единица измерения"]
[26,"Стоимость на единицу измерения","руб.","Стоимость на единицу измерения"]
[21,"Наименование работ (услуг)","—","Работы по содержанию и ремонту систем дымоудаления и вентиляции  "]
[22,"Годовая фактическая стоимость работ (услуг)","руб.","Годовая фактическая стоимость работ (услуг)",1179]
["Детальный перечень выполненных работ (оказанных услуг) в рамках выбранной работы (услуги) (заполняется по каждой выполненной работе (оказанной услуге) в пункте 21 настоящего документа)."]
[23,"Наименование работы (услуги), выполняемой в рамках указанного раздела работ (услуг)","—","Работы по содержанию и ремонту систем внутридомового газового оборудования  "]
[24,"Периодичность выполнения работ (оказания услуг)","—","Периодичность выполнения работ (оказания услуг)","Раз в год"]
[25,"Единица измерения","—","Единица измерения"]
[26,"Стоимость на единицу измерения","руб.","Стоимость на единицу измерения"]
[21,"Наименование работ (услуг)","—","Работы по содержанию земельного участка с элементами озеленения и благоустройства, иными объектами, предназначенными для обслуживания и эксплуатации многоквартирного дома"]
[22,"Годовая фактическая стоимость работ (услуг)","руб.","Годовая фактическая стоимость работ (услуг)",17612]
["Детальный перечень выполненных работ (оказанных услуг) в рамках выбранной работы (услуги) (заполняется по каждой выполненной работе (оказанной услуге) в пункте 21 настоящего документа)."]
[23,"Наименование работы (услуги), выполняемой в рамках указанного раздела работ (услуг)","—","Работы по содержанию земельного участка с элементами озеленения и благоустройства, иными объектами, предназначенными для обслуживания и эксплуатации многоквартирного дома"]
[24,"Периодичность выполнения работ (оказания услуг)","—","Периодичность выполнения работ (оказания услуг)","Ежемесячно"]
[25,"Единица измерения","—","Единица измерения"]
[26,"Стоимость на единицу измерения","руб.","Стоимость на единицу измерения"]
[21,"Наименование работ (услуг)","—","Проведение дератизации и дезинсекции помещений, входящих в состав общего имущества в многоквартирном доме  "]
[22,"Годовая фактическая стоимость работ (услуг)","руб.","Годовая фактическая стоимость работ (услуг)",2990]
["Детальный перечень выполненных работ (оказанных услуг) в рамках выбранной работы (услуги) (заполняется по каждой выполненной работе (оказанной услуге) в пункте 21 настоящего документа)."]
[23,"Наименование работы (услуги), выполняемой в рамках указанного раздела работ (услуг)","—","Проведение дератизации и дезинсекции помещений, входящих в состав общего имущества в многоквартирном доме  "]
[24,"Периодичность выполнения работ (оказания услуг)","—","Периодичность выполнения работ (оказания услуг)","Ежеквартально"]
[25,"Единица измерения","—","Единица измерения"]
[26,"Стоимость на единицу измерения","руб.","Стоимость на единицу измерения"]
[21,"Наименование работ (услуг)","—","Работы по обеспечению вывоза бытовых отходов"]
[22,"Годовая фактическая стоимость работ (услуг)","руб.","Годовая фактическая стоимость работ (услуг)",65475]
["Детальный перечень выполненных работ (оказанных услуг) в рамках выбранной работы (услуги) (заполняется по каждой выполненной работе (оказанной услуге) в пункте 21 настоящего документа)."]
[23,"Наименование работы (услуги), выполняемой в рамках указанного раздела работ (услуг)","—","Прочие работы и услуги"]
[24,"Периодичность выполнения работ (оказания услуг)","—","Периодичность выполнения работ (оказания услуг)"]
[25,"Единица измерения","—","Единица измерения"]
[26,"Стоимость на единицу измерения","руб.","Годовая фактическая стоимость работ ( услуг)"]
["Информация о наличии претензий по качеству выполненных работ (оказанных услуг)"]
[27,"Количество поступивших претензий","ед.","Количество поступивших претензий",0]
[28,"Количество удовлетворенных претензий","ед.","Количество удовлетворенных претензий",0]
[29,"Количество претензий, в удовлетворении которых отказано","ед.","Количество претензий, в удовлетворении которых отказано",0]
[30,"Сумма произведенного перерасчета","руб.","Сумма произведенного перерасчета",0]
["Общая информация по предоставленным коммунальным услугам"]
[31,"Авансовые платежи потребителей (на начало периода)","руб.","Авансовые платежи потребителей (на начало периода)",0]
[32,"Переходящие остатки денежных средств (на начало периода)","руб.","Переходящие остатки денежных средств (на начало периода)",0]
[33,"Задолженность потребителей (на начало периода)","руб.","Задолженность потребителей (на начало периода)",566600]
[34,"Авансовые платежи потреби-телей (на конец периода)","руб.","Авансовые платежи потребителей (на конец периода)",0]
[35,"Переходящие остатки денежных средств (на конец периода)","руб.","Переходящие остатки денежных средств (на конец периода)",0]
[36,"Задолженность потребителей (на конец периода)","руб.","Задолженность потребителей (на конец периода)",479602]
["Информация о предоставленных коммунальных услугах (заполняется по каждой коммунальной услуге)*"]
[37,"Вид коммунальной услуги","—","Отопление"]
[38,"Единица измерения","—","Единица измерения","Гкал"]
[39,"Общий объем потребления","нат. показ","Общий объем потребления",328]
[40,"Начислено потребителям","руб.","Начислено потребителям",1020944]
[41,"Оплачено потребителями","руб.","Оплачено потребителями",1042612]
[42,"Задолженность потребителей","руб.","Задолженность потребителей",0]
[43,"Начислено поставщиком (поставщиками) коммунального ресурса","руб.","Начислено поставщиком (поставщиками) коммунального ресурса",0]
[44,"Оплачено поставщику (поставщикам) коммунального ресурса","руб.","Оплачено поставщику (поставщикам) коммунального ресурса",0]
[45,"Задолженность перед поставщиком (поставщиками) коммунального ресурса","руб.","Задолженность перед поставщиком (поставщиками) коммунального ресурса",0]
[46,"Размер пени и штрафов, уплаченных поставщику (поставщикам) коммунального ресурса","руб.","Размер пени и штрафов, уплаченных поставщику (поставщикам) коммунального ресурса",0]
[37,"Вид коммунальной услуги","—","Холодное водоснабжение"]
[38,"Единица измерения","—","Единица измерения","куб.м"]
[39,"Общий объем потребления","нат. показ","Общий объем потребления",1924]
[40,"Начислено потребителям","руб.","Начислено потребителям",71274]
[41,"Оплачено потребителями","руб.","Оплачено потребителями",72787]
[42,"Задолженность потребителей","руб.","Задолженность потребителей",0]
[43,"Начислено поставщиком (поставщиками) коммунального ресурса","руб.","Начислено поставщиком (поставщиками) коммунального ресурса",0]
[44,"Оплачено поставщику (поставщикам) коммунального ресурса","руб.","Оплачено поставщику (поставщикам) коммунального ресурса",0]
[45,"Задолженность перед поставщиком (поставщиками) коммунального ресурса","руб.","Задолженность перед поставщиком (поставщиками) коммунального ресурса",0]
[46,"Размер пени и штрафов, уплаченных поставщику (поставщикам) коммунального ресурса","руб.","Размер пени и штрафов, уплаченных поставщику (поставщикам) коммунального ресурса",0]
[37,"Вид коммунальной услуги","—","Водоотведение"]
[38,"Единица измерения","—","Единица измерения","куб.м"]
[39,"Общий объем потребления","нат. показ","Общий объем потребления",1924]
[40,"Начислено потребителям","руб.","Начислено потребителям",79039]
[41,"Оплачено потребителями","руб.","Оплачено потребителями",80716]
[42,"Задолженность потребителей","руб.","Задолженность потребителей",0]
[43,"Начислено поставщиком (поставщиками) коммунального ресурса","руб.","Начислено поставщиком (поставщиками) коммунального ресурса",0]
[44,"Оплачено поставщику (поставщикам) коммунального ресурса","руб.","Оплачено поставщику (поставщикам) коммунального ресурса",0]
[45,"Задолженность перед поставщиком (поставщиками) коммунального ресурса","руб.","Задолженность перед поставщиком (поставщиками) коммунального ресурса",0]
[46,"Размер пени и штрафов, уплаченных поставщику (поставщикам) коммунального ресурса","руб.","Размер пени и штрафов, уплаченных поставщику (поставщикам) коммунального ресурса",0]
["Информация о наличии претензий по качеству предоставленных коммунальных услуг"]
[47,"Количество поступивших претензий","ед.","Количество поступивших претензий",0]
[48,"Количество удовлетворенных претензий","ед.","Количество удовлетворенных претензий",0]
[49,"Количество претензий, в удовлетворении которых отказано","ед.","Количество претензий, в удовлетворении которых отказано",0]
[50,"Сумма произведенного перерасчета","руб.","Сумма произведенного перерасчета",0]
["Информация о ведении претензионно-исковой работы в отношении потребителей-должников"]
[51,"Направлено претензий потребителям-должникам","ед.","Направлено претензий потребителям-должникам",2]
[52,"Направлено исковых заявлений","ед.","Направлено исковых заявлений",2]
[53,"Получено денежных средств по результатам претензионно-исковой работы","руб.","Получено денежных средств по результатам претензионно-исковой работы",0]

{"sheet":"Молодежная,1","index":4,"n_rows":138,"n_cols":5,"rows_kept":138,"cut":false,"hidden":false,"merged":[[134,0,134,4],[79,3,79,4],[81,0,81,4],[82,3,82,4],[91,0,91,4],[98,0,98,4],[99,3,99,4],[109,3,109,4],[119,3,119,4],[129,0,129,4],[86,0,86,4],[67,0,67,4],[68,3,68,4],[72,3,72,4],[74,0,74,4],[75,3,75,4],[65,3,65,4],[39,0,39,4],[40,3,40,4],[44,3,44,4],[46,0,46,4],[47,3,47,4],[51,3,51,4],[53,0,53,4],[54,3,54,4],[58,3,58,4],[60,0,60,4],[61,3,61,4],[37,3,37,4],[0,0,2,2],[0,3,0,4],[1,3,1,4],[3,0,3,4],[4,0,4,4],[6,0,6,4],[11,0,11,4],[29,0,29,4],[30,3,30,4],[32,0,32,4],[33,3,33,4]]}
["Молодежная,1",null,null,"Утв. приказом Минстроя России"]
[null,null,null,"от 22 декабря 2014 г. № 882/пр"]
[]
["Отчет об исполнении  МУП \"ЖКХ Зарубинское\" договора управления,"]
["а также отчет о выполнении смет доходов и расходов за 2018 год"]
[]
["Параметры формы"]
["№ п/п","Наименование параметра","Ед. изм.","Наименование показателя","Информация"]
[1,"Дата заполнения/внесения изменений","—","Дата заполнения/внесения изменений","2019-03-19"]
[2,"Дата начала отчетного периода","—","Дата начала отчетного периода","2018-01-01"]
[3,"Дата конца отчетного периода","—","Дата конца отчетного периода","2018-12-31"]
["Общая информация о выполняемых работах (оказываемых услугах) по содержанию и текущему ремонту общего имущества в многоквартирном доме"]
[4,"Авансовые платежи потребителей (на начало периода)","руб.","Авансовые платежи потребителей (на начало периода)",0]
[5,"Переходящие остатки денежных средств (на начало периода)","руб.","Переходящие остатки денежных средств (на начало периода)",0]
[6,"Задолженность потребителей (на начало периода)","руб.","Задолженность потребителей (на начало периода)",57847]
[7,"Начислено за услуги (работы) по содержанию и текущему ремонту, в том числе:","руб.","Начислено за услуги (работы) по содержанию и текущему ремонту",{"$f":"E17+E18+E19","v":94467}]
[8,"— за содержание дома","руб.","Начислено за содержание дома",73495]
[9,"— за текущий ремонт","руб.","Начислено за текущий ремонт",3779]
[10,"— за услуги управления","руб.","Начислено за услуги управления",17193]
[11,"Получено денежных средств, в том числе","руб.","Получено денежных средств",114195]
[12,"— денежных средств от собственников/нанимателей помещений","руб.","Получено денежных средств от собственников/нанимателей помещений",114195]
[13,"— целевых взносов от собственников/нанимателей помещений","руб.","Получено целевых взносов от собственников/нанимателей помещений",0]
[14,"— субсидий","руб.","Получено субсидий",0]
[15,"— денежных средств от использования общего имущества","руб.","Получено денежных средств от использования общего имущества",0]
[16,"— прочие поступления","руб.","Прочие поступления",0]
[17,"Всего денежных средств с учетом остатков","руб.","Всего денежных средств с учетом остатков",{"$f":"E15+E16","v":152314}]
[18,"Авансовые платежи потребителей (на конец периода)","руб.","Авансовые платежи потребителей (на конец периода)",0]
[19,"Переходящие остатки денежных средств (на конец периода)","руб.","Переходящие остатки денежных средств (на конец периода)",0]
[20,"Задолженность потребителей (на конец периода)","руб.","Задолженность потребителей (на конец периода)",0]
["Выполненные работы (оказанные услуги) по содержанию общего имущества и текущему ремонту в отчетном периоде (заполняется по каждому виду работ (услуг))"]
[21,"Наименование работ (услуг)","—","Работы (услуги) по управлению многоквартирным домом  "]
[22,"Годовая фактическая стоимость работ (услуг)","руб.","Годовая фактическая стоимость работ (услуг)",20040.41]
["Детальный перечень выполненных работ (оказанных услуг) в рамках выбранной работы (услуги) (заполняется по каждой выполненной работе (оказанной услуге) в пункте 21 настоящего документа)."]
[23,"Наименование работы (услуги), выполняемой в рамках указанного раздела работ (услуг)","—","Работы (услуги) по управлению многоквартирным домом  "]
[24,"Периодичность выполнения работ (оказания услуг)","—","Периодичность выполнения работ (оказания услуг)","Ежемесячно"]
[25,"Единица измерения","—","Единица измерения"]
[26,"Стоимость на единицу измерения","руб.","Стоимость на единицу измерения"]
[21,"Наименование работ (услуг)","—","Работы по содержанию помещений, входящих в состав общего имущества в многоквартирном доме  "]
[22,"Годовая фактическая стоимость работ (услуг)","руб.","Годовая фактическая стоимость работ (услуг)",8708.11]
["Детальный перечень выполненных работ (оказанных услуг) в рамках выбранной работы (услуги) (заполняется по каждой выполненной работе (оказанной услуге) в пункте 21 настоящего документа)."]
[23,"Наименование работы (услуги), выполняемой в рамках указанного раздела работ (услуг)","—","Работы по содержанию помещений, входящих в состав общего имущества в многоквартирном доме  "]
[24,"Периодичность выполнения работ (оказания услуг)","—","Периодичность выполнения работ (оказания услуг)","Ежемесячно"]
[25,"Единица измерения","—","Единица измерения"]
[26,"Стоимость на единицу измерения","руб.","Стоимость на единицу измерения"]
[21,"Наименование работ (услуг)","—","Работы по содержанию и ремонту систем внутридомового газового оборудования  "]
[22,"Годовая фактическая стоимость работ (услуг)","руб.","Годовая фактическая стоимость работ (услуг)",3905.32]
["Детальный перечень выполненных работ (оказанных услуг) в рамках выбранной работы (услуги) (заполняется по каждой выполненной работе (оказанной услуге) в пункте 21 настоящего документа)."]
[23,"Наименование работы (услуги), выполняемой в рамках указанного раздела работ (услуг)","—","Работы по содержанию и ремонту систем внутридомового газового оборудования  "]
[24,"Периодичность выполнения работ (оказания услуг)","—","Периодичность выполнения работ (оказания услуг)","Раз в год"]
[25,"Единица измерения","—","Единица измерения"]
[26,"Стоимость на единицу измерения","руб.","Стоимость на единицу измерения"]
[21,"Наименование работ (услуг)","—","Работы по содержанию и ремонту конструктивных элементов (несущих конструкций и ненесущих конструкций) многоквартирных домов "]
[22,"Годовая фактическая стоимость работ (услуг)","руб.","Годовая фактическая стоимость работ (услуг)",0]
["Детальный перечень выполненных работ (оказанных услуг) в рамках выбранной работы (услуги) (заполняется по каждой выполненной работе (оказанной услуге) в пункте 21 настоящего документа)."]
[23,"Наименование работы (услуги), выполняемой в рамках указанного раздела работ (услуг)","—","Работы по содержанию и ремонту систем внутридомового газового оборудования  "]
[24,"Периодичность выполнения работ (оказания услуг)","—","Периодичность выполнения работ (оказания услуг)","Раз в год"]
[25,"Единица измерения","—","Единица измерения"]
[26,"Стоимость на единицу измерения","руб.","Стоимость на единицу измерения"]
[21,"Наименование работ (услуг)","—","Работы по содержанию земельного участка с элементами озеленения и благоустройства, иными объектами, предназначенными для обслуживания и эксплуатации многоквартирного дома"]
[22,"Годовая фактическая стоимость работ (услуг)","руб.","Годовая фактическая стоимость работ (услуг)",11955]
["Детальный перечень выполненных работ (оказанных услуг) в рамках выбранной работы (услуги) (заполняется по каждой выполненной работе (оказанной услуге) в пункте 21 настоящего документа)."]
[23,"Наименование работы (услуги), выполняемой в рамках указанного раздела работ (услуг)","—","Работы по содержанию земельного участка с элементами озеленения и благоустройства, иными объектами, предназначенными для обслуживания и эксплуатации многоквартирного дома"]
[24,"Периодичность выполнения работ (оказания услуг)","—","Периодичность выполнения работ (оказания услуг)","Ежемесячно"]
[25,"Единица измерения","—","Единица измерения"]
[26,"Стоимость на единицу измерения","руб.","Стоимость на единицу измерения"]
[21,"Наименование работ (услуг)","—","Проведение дератизации и дезинсекции помещений, входящих в состав общего имущества в многоквартирном доме  "]
[22,"Годовая фактическая стоимость работ (услуг)","руб.","Годовая фактическая стоимость работ (услуг)",1484]
["Детальный перечень выполненных работ (оказанных услуг) в рамках выбранной работы (услуги) (заполняется по каждой выполненной работе (оказанной услуге) в пункте 21 настоящего документа)."]
[23,"Наименование работы (услуги), выполняемой в рамках указанного раздела работ (услуг)","—","Проведение дератизации и дезинсекции помещений, входящих в состав общего имущества в многоквартирном доме  "]
[24,"Периодичность выполнения работ (оказания услуг)","—","Периодичность выполнения работ (оказания услуг)","Ежеквартально"]
[25,"Единица измерения","—","Единица измерения"]
[26,"Стоимость на единицу измерения","руб.","Стоимость на единицу измерения"]
[21,"Наименование работ (услуг)","—","Работы по обеспечению вывоза бытовых отходов"]
[22,"Годовая фактическая стоимость работ (услуг)","руб.","Годовая фактическая стоимость работ (услуг)",32504.89]
["Детальный перечень выполненных работ (оказанных услуг) в рамках выбранной работы (услуги) (заполняется по каждой выполненной работе (оказанной услуге) в пункте 21 настоящего документа)."]
[23,"Наименование работы (услуги), выполняемой в рамках указанного раздела работ (услуг)","—","Работы по обеспечению вывоза бытовых отходов"]
[24,"Периодичность выполнения работ (оказания услуг)","—","Периодичность выполнения работ (оказания услуг)","Ежемесячно"]
[25,"Единица измерения","—","Единица измерения"]
[26,"Стоимость на единицу измерения","руб.","Стоимость на единицу измерения"]
[21,"Наименование работ (услуг)","—","Прочие работы (услуга)"]
[22,"Годовая фактическая стоимость работ (услуг)","руб.","Годовая фактическая стоимость работ (услуг)",6263.81]
["Детальный перечень выполненных работ (оказанных услуг) в рамках выбранной работы (услуги) (заполняется по каждой выполненной работе (оказанной услуге) в пункте 21 настоящего документа)."]
[23,"Наименование работы (услуги), выполняемой в рамках указанного раздела работ (услуг)","—","Работы по содержанию и ремонту систем внутридомового газового оборудования  "]
[24,"Периодичность выполнения работ (оказания услуг)","—","Периодичность выполнения работ (оказания услуг)","Раз в год"]
[25,"Единица измерения","—","Единица измерения"]
[26,"Стоимость на единицу измерения","руб.","Стоимость на единицу измерения"]
["Информация о наличии претензий по качеству выполненных работ (оказанных услуг)"]
[27,"Количество поступивших претензий","ед.","Количество поступивших претензий",0]
[28,"Количество удовлетворенных претензий","ед.","Количество удовлетворенных претензий",0]
[29,"Количество претензий, в удовлетворении которых отказано","ед.","Количество претензий, в удовлетворении которых отказано",0]
[30,"Сумма произведенного перерасчета","руб.","Сумма произведенного перерасчета",0]
["Общая информация по предоставленным коммунальным услугам"]
[31,"Авансовые платежи потребителей (на начало периода)","руб.","Авансовые платежи потребителей (на начало периода)",0]
[32,"Переходящие остатки денежных средств (на начало периода)","руб.","Переходящие остатки денежных средств (на начало периода)",0]
[33,"Задолженность потребителей (на начало периода)","руб.","Задолженность потребителей (на начало периода)",209907]
[34,"Авансовые платежи потреби-телей (на конец периода)","руб.","Авансовые платежи потребителей (на конец периода)",0]
[35,"Переходящие остатки денежных средств (на конец периода)","руб.","Переходящие остатки денежных средств (на конец периода)",0]
[36,"Задолженность потребителей (на конец периода)","руб.","Задолженность потребителей (на конец периода)",81840]
["Информация о предоставленных коммунальных услугах (заполняется по каждой коммунальной услуге)*"]
[37,"Вид коммунальной услуги","—","Отопление"]
[38,"Единица измерения","—","Единица измерения","Гкал"]
[39,"Общий объем потребления","нат. показ","Общий объем потребления",162]
[40,"Начислено потребителям","руб.","Начислено потребителям",507063]
[41,"Оплачено потребителями","руб.","Оплачено потребителями",612951]
[42,"Задолженность потребителей","руб.","Задолженность потребителей",0]
[43,"Начислено поставщиком (поставщиками) коммунального ресурса","руб.","Начислено поставщиком (поставщиками) коммунального ресурса",0]
[44,"Оплачено поставщику (поставщикам) коммунального ресурса","руб.","Оплачено поставщику (поставщикам) коммунального ресурса",0]
[45,"Задолженность перед поставщиком (поставщиками) коммунального ресурса","руб.","Задолженность перед поставщиком (поставщиками) коммунального ресурса",0]
[46,"Размер пени и штрафов, уплаченных поставщику (поставщикам) коммунального ресурса","руб.","Размер пени и штрафов, уплаченных поставщику (поставщикам) коммунального ресурса",0]
[37,"Вид коммунальной услуги","—","Холодное водоснабжение"]
[38,"Единица измерения","—","Единица измерения","куб.м"]
[39,"Общий объем потребления","нат. показ","Общий объем потребления",856]
[40,"Начислено потребителям","руб.","Начислено потребителям",28122]
[41,"Оплачено потребителями","руб.","Оплачено потребителями",32144]
[42,"Задолженность потребителей","руб.","Задолженность потребителей",0]
[43,"Начислено поставщиком (поставщиками) коммунального ресурса","руб.","Начислено поставщиком (поставщиками) коммунального ресурса",0]
[44,"Оплачено поставщику (поставщикам) коммунального ресурса","руб.","Оплачено поставщику (поставщикам) коммунального ресурса",0]
[45,"Задолженность перед поставщиком (поставщиками) коммунального ресурса","руб.","Задолженность перед поставщиком (поставщиками) коммунального ресурса",0]
[46,"Размер пени и штрафов, уплаченных поставщику (поставщикам) коммунального ресурса","руб.","Размер пени и штрафов, уплаченных поставщику (поставщикам) коммунального ресурса",0]
[37,"Вид коммунальной услуги","—","Водоотведение"]
[38,"Единица измерения","—","Единица измерения","куб.м"]
[39,"Общий объем потребления","нат. показ","Общий объем потребления",856]
[40,"Начислено потребителям","руб.","Начислено потребителям",35123]
[41,"Оплачено потребителями","руб.","Оплачено потребителями",42457]
[42,"Задолженность потребителей","руб.","Задолженность потребителей",0]
[43,"Начислено поставщиком (поставщиками) коммунального ресурса","руб.","Начислено поставщиком (поставщиками) коммунального ресурса",0]
[44,"Оплачено поставщику (поставщикам) коммунального ресурса","руб.","Оплачено поставщику (поставщикам) коммунального ресурса",0]
[45,"Задолженность перед поставщиком (поставщиками) коммунального ресурса","руб.","Задолженность перед поставщиком (поставщиками) коммунального ресурса",0]
[46,"Размер пени и штрафов, уплаченных поставщику (поставщикам) коммунального ресурса","руб.","Размер пени и штрафов, уплаченных поставщику (поставщикам) коммунального ресурса",0]
["Информация о наличии претензий по качеству предоставленных коммунальных услуг"]
[47,"Количество поступивших претензий","ед.","Количество поступивших претензий",0]
[48,"Количество удовлетворенных претензий","ед.","Количество удовлетворенных претензий",0]
[49,"Количество претензий, в удовлетворении которых отказано","ед.","Количество претензий, в удовлетворении которых отказано",0]
[50,"Сумма произведенного перерасчета","руб.","Сумма произведенного перерасчета",0]
["Информация о ведении претензионно-исковой работы в отношении потребителей-должников"]
[51,"Направлено претензий потребителям-должникам","ед.","Направлено претензий потребителям-должникам",4]
[52,"Направлено исковых заявлений","ед.","Направлено исковых заявлений",2]
[53,"Получено денежных средств по результатам претензионно-исковой работы","руб.","Получено денежных средств по результатам претензионно-исковой работы",91395]